[Event "January 9 Late 2024"]
[Site "https://www.chess.com"]
[Date "2024.01.09"]
[Round "2"]
[White "Chigaev, Maksim"]
[Black "Xhembulla, Aleksander"]
[Result "1-0"]
[Board "34"]
[TimeControl "180+1"]
[WhiteFideId "4108116"]
[BlackFideId "4705114"]
[WhiteElo "2978"]
[BlackElo "2633"]
[WhiteTeam "ESP"]
[BlackTeam "ALB"]
[WhiteClock "0:00:15"]
[BlackClock "0:00:00"]

1. c4 {[%clk 0:02:56]}  Nf6 {[%clk 0:02:56]} 2. g3 {[%clk 0:02:56]}  e5 {[%clk 0:02:54]} 3. Bg2 {[%clk 0:02:56]}  c6 {[%clk 0:02:54]} 4. d4 {[%clk 0:02:54]}  e4 {[%clk 0:02:50]} 5. d5 {[%clk 0:02:51]}  Bb4+ {[%clk 0:02:46]} 6. Bd2 {[%clk 0:02:50]}  Qa5 {[%clk 0:02:41]} 7. d6 {[%clk 0:02:42]}  O-O {[%clk 0:02:34]} 8. a3 {[%clk 0:02:33]}  Bxd2+ {[%clk 0:02:25]} 9. Qxd2 {[%clk 0:02:34]}  Qe5 {[%clk 0:02:23]} 10. Nc3 {[%clk 0:02:28]}  Na6 {[%clk 0:02:21]} 11. b4 {[%clk 0:02:12]}  Re8 {[%clk 0:01:27]} 12. f4 {[%clk 0:01:44]}  exf3 {[%clk 0:01:21]} 13. Nxf3 {[%clk 0:01:44]}  Qh5 {[%clk 0:01:19]} 14. O-O {[%clk 0:01:39]}  b6 {[%clk 0:01:16]} 15. e4 {[%clk 0:01:22]}  Ng4 {[%clk 0:01:01]} 16. Rae1 {[%clk 0:01:06]}  Ne5 {[%clk 0:01:00]} 17. Nxe5 {[%clk 0:00:59]}  Qxe5 {[%clk 0:01:00]} 18. Rf5 {[%clk 0:00:56]}  Qe6 {[%clk 0:01:01]} 19. Ref1 {[%clk 0:00:51]}  Qxc4 {[%clk 0:00:55]} 20. Rxf7 {[%clk 0:00:49]}  Qxf7 {[%clk 0:00:56]} 21. Rxf7 {[%clk 0:00:50]}  Kxf7 {[%clk 0:00:56]} 22. e5 {[%clk 0:00:48]}  Bb7 {[%clk 0:00:37]} 23. Ne4 {[%clk 0:00:46]}  h6 {[%clk 0:00:36]} 24. Qf4+ {[%clk 0:00:32]}  Kg8 {[%clk 0:00:36]} 25. Qg4 {[%clk 0:00:32]}  Rxe5 {[%clk 0:00:23]} 26. Qxd7 {[%clk 0:00:32]}  Rb8 {[%clk 0:00:11]} 27. h4 {[%clk 0:00:28]}  c5 {[%clk 0:00:10]} 28. Nf6+ {[%clk 0:00:26]}  gxf6 {[%clk 0:00:11]} 29. Bxb7 {[%clk 0:00:26]}  Nxb4 {[%clk 0:00:10]} 30. axb4 {[%clk 0:00:25]}  cxb4 {[%clk 0:00:11]} 31. Qc7 {[%clk 0:00:26]}  Rf8 {[%clk 0:00:08]} 32. d7 {[%clk 0:00:25]}  Re1+ {[%clk 0:00:07]} 33. Kf2 {[%clk 0:00:22]}  Rd1 {[%clk 0:00:08]} 34. Bf3 {[%clk 0:00:17]}  Rd4 {[%clk 0:00:07]} 35. Ke3 {[%clk 0:00:18]}  b3 {[%clk 0:00:01]} 36. Kxd4 {[%clk 0:00:16]}  b2 {[%clk 0:00:02]} 37. Be4 {[%clk 0:00:16]}  f5 {[%clk 0:00:00]} 38. Bb1 {[%clk 0:00:15]} 1-0

[Event "January 9 Late 2024"]
[Site "https://www.chess.com"]
[Date "2024.01.09"]
[Round "2"]
[White "Salem, A.R. Saleh"]
[Black "Mokshanov, Alexey"]
[Result "1-0"]
[Board "36"]
[TimeControl "180+1"]
[WhiteFideId "9301348"]
[BlackFideId "24121657"]
[WhiteElo "2973"]
[BlackElo "2628"]
[WhiteTeam "UAE"]
[BlackTeam "RUS"]
[WhiteClock "0:00:16"]
[BlackClock "0:00:11"]

1. d4 {[%clk 0:03:00]}  d5 {[%clk 0:02:59]} 2. c4 {[%clk 0:03:01]}  e6 {[%clk 0:02:59]} 3. Nc3 {[%clk 0:03:00]}  Nf6 {[%clk 0:02:59]} 4. Nf3 {[%clk 0:03:01]}  Be7 {[%clk 0:02:57]} 5. Bg5 {[%clk 0:03:00]}  O-O {[%clk 0:02:57]} 6. e3 {[%clk 0:03:00]}  c6 {[%clk 0:02:55]} 7. Qc2 {[%clk 0:03:00]}  Nbd7 {[%clk 0:02:55]} 8. h4 {[%clk 0:02:57]}  a6 {[%clk 0:02:44]} 9. c5 {[%clk 0:02:54]}  e5 {[%clk 0:02:26]} 10. Bxf6 {[%clk 0:02:29]}  Bxf6 {[%clk 0:02:24]} 11. O-O-O {[%clk 0:02:24]}  exd4 {[%clk 0:02:16]} 12. exd4 {[%clk 0:02:23]}  Re8 {[%clk 0:02:17]} 13. g4 {[%clk 0:02:21]}  Nf8 {[%clk 0:02:06]} 14. g5 {[%clk 0:02:21]}  Bg4 {[%clk 0:02:01]} 15. Be2 {[%clk 0:02:11]}  Bxf3 {[%clk 0:01:56]} 16. Bxf3 {[%clk 0:02:10]}  Be7 {[%clk 0:01:57]} 17. Kb1 {[%clk 0:02:04]}  Ne6 {[%clk 0:01:54]} 18. Rhg1 {[%clk 0:01:41]}  b6 {[%clk 0:01:52]} 19. Bg4 {[%clk 0:01:30]}  Bf8 {[%clk 0:01:41]} 20. cxb6 {[%clk 0:01:21]}  Qxb6 {[%clk 0:01:40]} 21. Ne2 {[%clk 0:01:09]}  Rab8 {[%clk 0:01:36]} 22. Rg3 {[%clk 0:00:59]}  c5 {[%clk 0:01:15]} 23. Rb3 {[%clk 0:00:59]}  Qc7 {[%clk 0:00:59]} 24. Rxb8 {[%clk 0:00:51]}  Rxb8 {[%clk 0:00:58]} 25. Bf5 {[%clk 0:00:47]}  g6 {[%clk 0:00:55]} 26. Bxe6 {[%clk 0:00:48]}  fxe6 {[%clk 0:00:55]} 27. h5 {[%clk 0:00:42]}  gxh5 {[%clk 0:00:45]} 28. Rh1 {[%clk 0:00:41]}  Qf7 {[%clk 0:00:44]} 29. Ng3 {[%clk 0:00:33]}  Bg7 {[%clk 0:00:42]} 30. Nxh5 {[%clk 0:00:31]}  Bxd4 {[%clk 0:00:42]} 31. Nf6+ {[%clk 0:00:32]}  Bxf6 {[%clk 0:00:37]} 32. gxf6 {[%clk 0:00:33]}  Kh8 {[%clk 0:00:20]} 33. Rh6 {[%clk 0:00:33]}  c4 {[%clk 0:00:19]} 34. Qc3 {[%clk 0:00:25]}  Rg8 {[%clk 0:00:19]} 35. a4 {[%clk 0:00:19]}  Rg6 {[%clk 0:00:19]} 36. Rxg6 {[%clk 0:00:19]}  Qxg6+ {[%clk 0:00:19]} 37. Ka2 {[%clk 0:00:19]}  Kg8 {[%clk 0:00:20]} 38. Qa5 {[%clk 0:00:16]}  Qxf6 {[%clk 0:00:19]} 39. Qxa6 {[%clk 0:00:16]}  h5 {[%clk 0:00:19]} 40. a5 {[%clk 0:00:16]}  c3 {[%clk 0:00:17]} 41. Qc8+ {[%clk 0:00:16]}  Kg7 {[%clk 0:00:17]} 42. Qxc3 {[%clk 0:00:16]}  d4 {[%clk 0:00:16]} 43. Qg3+ {[%clk 0:00:16]}  Kh6 {[%clk 0:00:17]} 44. a6 {[%clk 0:00:15]}  e5 {[%clk 0:00:17]} 45. a7 {[%clk 0:00:14]}  Qe6+ {[%clk 0:00:17]} 46. Qb3 {[%clk 0:00:14]}  Qa6+ {[%clk 0:00:17]} 47. Qa3 {[%clk 0:00:15]}  Qc4+ {[%clk 0:00:17]} 48. b3 {[%clk 0:00:15]}  Qe2+ {[%clk 0:00:17]} 49. Kb1 {[%clk 0:00:15]}  Qd1+ {[%clk 0:00:11]} 50. Qc1+ {[%clk 0:00:16]} 1-0

[Event "January 9 Late 2024"]
[Site "https://www.chess.com"]
[Date "2024.01.09"]
[Round "2"]
[White "Korchynskyi, Mykola"]
[Black "Sjugirov, Sanan"]
[Result "0-1"]
[Board "40"]
[TimeControl "180+1"]
[WhiteFideId "34138005"]
[BlackFideId "4189302"]
[WhiteElo "2616"]
[BlackElo "2956"]
[WhiteTeam "UKR"]
[BlackTeam "HUN"]
[WhiteClock "0:00:00"]
[BlackClock "0:00:13"]

1. d4 {[%clk 0:02:59]}  Nf6 {[%clk 0:02:59]} 2. c4 {[%clk 0:02:59]}  e6 {[%clk 0:03:00]} 3. Nc3 {[%clk 0:02:59]}  Bb4 {[%clk 0:03:00]} 4. Qc2 {[%clk 0:02:58]}  O-O {[%clk 0:02:59]} 5. a3 {[%clk 0:02:59]}  Bxc3+ {[%clk 0:02:59]} 6. Qxc3 {[%clk 0:02:59]}  b6 {[%clk 0:03:00]} 7. Bg5 {[%clk 0:02:59]}  Bb7 {[%clk 0:02:59]} 8. e3 {[%clk 0:02:59]}  h6 {[%clk 0:02:57]} 9. Bh4 {[%clk 0:02:59]}  d6 {[%clk 0:02:57]} 10. Ne2 {[%clk 0:02:58]}  Nbd7 {[%clk 0:02:56]} 11. Qc2 {[%clk 0:02:58]}  c5 {[%clk 0:02:37]} 12. Rd1 {[%clk 0:02:53]}  Rc8 {[%clk 0:02:33]} 13. Nc3 {[%clk 0:02:41]}  Qe7 {[%clk 0:02:26]} 14. d5 {[%clk 0:02:31]}  exd5 {[%clk 0:02:06]} 15. Nxd5 {[%clk 0:02:16]}  Bxd5 {[%clk 0:02:04]} 16. cxd5 {[%clk 0:02:17]}  g5 {[%clk 0:01:57]} 17. Bg3 {[%clk 0:02:14]}  Ne4 {[%clk 0:01:57]} 18. Bd3 {[%clk 0:02:13]}  Ndf6 {[%clk 0:01:56]} 19. O-O {[%clk 0:02:07]}  c4 {[%clk 0:01:43]} 20. Be2 {[%clk 0:01:49]}  b5 {[%clk 0:01:36]} 21. Rd4 {[%clk 0:01:45]}  a6 {[%clk 0:01:30]} 22. Bf3 {[%clk 0:01:27]}  Rfe8 {[%clk 0:01:29]} 23. Rfd1 {[%clk 0:01:20]}  Rc5 {[%clk 0:01:05]} 24. a4 {[%clk 0:01:12]}  Nxg3 {[%clk 0:00:56]} 25. hxg3 {[%clk 0:01:09]}  Qe5 {[%clk 0:00:56]} 26. axb5 {[%clk 0:01:06]}  axb5 {[%clk 0:00:57]} 27. b4 {[%clk 0:01:01]}  Rcc8 {[%clk 0:00:48]} 28. Ra1 {[%clk 0:01:00]}  Ra8 {[%clk 0:00:47]} 29. Ra5 {[%clk 0:00:50]}  Rxa5 {[%clk 0:00:40]} 30. bxa5 {[%clk 0:00:51]}  Ra8 {[%clk 0:00:41]} 31. Qa2 {[%clk 0:00:51]}  h5 {[%clk 0:00:33]} 32. a6 {[%clk 0:00:39]}  g4 {[%clk 0:00:32]} 33. Be2 {[%clk 0:00:38]}  Nxd5 {[%clk 0:00:31]} 34. Bxc4 {[%clk 0:00:14]}  bxc4 {[%clk 0:00:28]} 35. Qxc4 {[%clk 0:00:15]}  Nf6 {[%clk 0:00:15]} 36. Qc6 {[%clk 0:00:11]}  Qe8 {[%clk 0:00:15]} 37. Qxd6 {[%clk 0:00:10]}  Qe6 {[%clk 0:00:15]} 38. Qc7 {[%clk 0:00:04]}  Rxa6 {[%clk 0:00:14]} 39. Qf4 {[%clk 0:00:04]}  Kh7 {[%clk 0:00:11]} 40. Qg5 {[%clk 0:00:03]}  Rd6 {[%clk 0:00:09]} 41. Rf4 {[%clk 0:00:02]}  Rc6 {[%clk 0:00:05]} 42. e4 {[%clk 0:00:02]}  Nxe4 {[%clk 0:00:03]} 43. Qxh5+ {[%clk 0:00:02]}  Kg7 {[%clk 0:00:02]} 44. Rxg4+ {[%clk 0:00:02]}  Kf8 {[%clk 0:00:03]} 45. Rf4 {[%clk 0:00:02]}  Nf6 {[%clk 0:00:03]} 46. Qh6+ {[%clk 0:00:02]}  Ke7 {[%clk 0:00:03]} 47. Qg5 {[%clk 0:00:02]}  Rc1+ {[%clk 0:00:04]} 48. Kh2 {[%clk 0:00:03]}  Rc6 {[%clk 0:00:04]} 49. Rf3 {[%clk 0:00:03]}  Kf8 {[%clk 0:00:05]} 50. Qh6+ {[%clk 0:00:03]}  Kg8 {[%clk 0:00:05]} 51. Qg5+ {[%clk 0:00:03]}  Kh7 {[%clk 0:00:05]} 52. Qh4+ {[%clk 0:00:03]}  Kg6 {[%clk 0:00:06]} 53. Rf4 {[%clk 0:00:03]}  Rc5 {[%clk 0:00:06]} 54. g4 {[%clk 0:00:03]}  Rg5 {[%clk 0:00:06]} 55. f3 {[%clk 0:00:03]}  Qe5 {[%clk 0:00:07]} 56. Qg3 {[%clk 0:00:03]}  Nd5 {[%clk 0:00:07]} 57. Re4 {[%clk 0:00:02]}  Qxg3+ {[%clk 0:00:07]} 58. Kxg3 {[%clk 0:00:03]}  Nf6 {[%clk 0:00:08]} 59. Ra4 {[%clk 0:00:03]}  Rc5 {[%clk 0:00:08]} 60. Ra6 {[%clk 0:00:03]}  Kg7 {[%clk 0:00:08]} 61. Kf4 {[%clk 0:00:03]}  Rc4+ {[%clk 0:00:08]} 62. Kg3 {[%clk 0:00:03]}  Rc3 {[%clk 0:00:08]} 63. Ra5 {[%clk 0:00:04]}  Ne4+ {[%clk 0:00:08]} 64. Kf4 {[%clk 0:00:04]}  Nd6 {[%clk 0:00:09]} 65. Rg5+ {[%clk 0:00:04]}  Kf6 {[%clk 0:00:09]} 66. Ra5 {[%clk 0:00:05]}  Rc4+ {[%clk 0:00:09]} 67. Kg3 {[%clk 0:00:05]}  Ke6 {[%clk 0:00:09]} 68. Rh5 {[%clk 0:00:06]}  Rc2 {[%clk 0:00:10]} 69. Rh6+ {[%clk 0:00:06]}  f6 {[%clk 0:00:10]} 70. Rh1 {[%clk 0:00:06]}  Nc4 {[%clk 0:00:10]} 71. Re1+ {[%clk 0:00:07]}  Kf7 {[%clk 0:00:10]} 72. Ra1 {[%clk 0:00:07]}  Ne3 {[%clk 0:00:10]} 73. Rg1 {[%clk 0:00:06]}  Kg6 {[%clk 0:00:10]} 74. Kf4 {[%clk 0:00:06]}  Nxg2+ {[%clk 0:00:11]} 75. Kg3 {[%clk 0:00:06]}  Ne3 {[%clk 0:00:11]} 76. Ra1 {[%clk 0:00:06]}  Rc4 {[%clk 0:00:11]} 77. Ra8 {[%clk 0:00:06]}  Nf1+ {[%clk 0:00:11]} 78. Kf2 {[%clk 0:00:06]}  Nd2 {[%clk 0:00:11]} 79. Ke3 {[%clk 0:00:06]}  Nb3 {[%clk 0:00:11]} 80. Rg8+ {[%clk 0:00:05]}  Kf7 {[%clk 0:00:11]} 81. Rb8 {[%clk 0:00:05]}  Rc3+ {[%clk 0:00:11]} 82. Kf2 {[%clk 0:00:02]}  Nc5 {[%clk 0:00:12]} 83. Rc8 {[%clk 0:00:02]}  Rc2+ {[%clk 0:00:12]} 84. Kg3 {[%clk 0:00:00]}  Ne4+ {[%clk 0:00:13]} 0-1

[Event "January 9 Late 2024"]
[Site "https://www.chess.com"]
[Date "2024.01.09"]
[Round "2"]
[White "Bjelobrk, Igor"]
[Black "Sargsyan, Shant"]
[Result "0-1"]
[Board "42"]
[TimeControl "180+1"]
[WhiteFideId "4300726"]
[BlackFideId "13306766"]
[WhiteElo "2613"]
[BlackElo "2943"]
[WhiteTeam "AUS"]
[BlackTeam "ARM"]
[WhiteClock "0:01:09"]
[BlackClock "0:01:36"]

1. d4 {[%clk 0:02:56]}  g6 {[%clk 0:03:00]} 2. e4 {[%clk 0:02:54]}  Nf6 {[%clk 0:03:00]} 3. Bd3 {[%clk 0:02:52]}  d6 {[%clk 0:02:55]} 4. Nf3 {[%clk 0:02:51]}  Bg7 {[%clk 0:02:56]} 5. O-O {[%clk 0:02:46]}  Nc6 {[%clk 0:02:56]} 6. c3 {[%clk 0:02:45]}  O-O {[%clk 0:02:56]} 7. Re1 {[%clk 0:02:29]}  e5 {[%clk 0:02:56]} 8. dxe5 {[%clk 0:02:28]}  dxe5 {[%clk 0:02:54]} 9. Bg5 {[%clk 0:02:27]}  h6 {[%clk 0:02:54]} 10. Bh4 {[%clk 0:02:26]}  Qe7 {[%clk 0:02:52]} 11. Nbd2 {[%clk 0:02:21]}  Rd8 {[%clk 0:02:51]} 12. Qc2 {[%clk 0:02:20]}  a5 {[%clk 0:02:51]} 13. a4 {[%clk 0:02:20]}  Be6 {[%clk 0:02:31]} 14. Bc4 {[%clk 0:02:09]}  g5 {[%clk 0:02:16]} 15. Bg3 {[%clk 0:02:08]}  Nd7 {[%clk 0:02:16]} 16. Bxe6 {[%clk 0:02:05]}  Qxe6 {[%clk 0:02:17]} 17. Nf1 {[%clk 0:02:04]}  Nc5 {[%clk 0:02:15]} 18. Ne3 {[%clk 0:02:02]}  Qb3 {[%clk 0:02:15]} 19. Qxb3 {[%clk 0:02:01]}  Nxb3 {[%clk 0:02:15]} 20. Rad1 {[%clk 0:01:59]}  Nc5 {[%clk 0:02:11]} 21. Nd5 {[%clk 0:01:54]}  Nxa4 {[%clk 0:02:09]} 22. Nxc7 {[%clk 0:01:48]}  Rac8 {[%clk 0:02:00]} 23. Rxd8+ {[%clk 0:01:45]}  Rxd8 {[%clk 0:01:58]} 24. Nd5 {[%clk 0:01:33]}  f5 {[%clk 0:01:47]} 25. c4 {[%clk 0:01:26]}  f4 {[%clk 0:01:42]} 26. b3 {[%clk 0:01:15]}  Nc5 {[%clk 0:01:40]} 27. Nd2 {[%clk 0:01:15]}  fxg3 {[%clk 0:01:35]} 28. hxg3 {[%clk 0:01:09]}  Nd4 {[%clk 0:01:36]} 0-1

[Event "January 9 Late 2024"]
[Site "https://www.chess.com"]
[Date "2024.01.09"]
[Round "2"]
[White "Rodgers, Jack"]
[Black "Indjic, Aleksandar"]
[Result "0-1"]
[Board "48"]
[TimeControl "180+1"]
[WhiteFideId "3220885"]
[BlackFideId "911925"]
[WhiteElo "2606"]
[BlackElo "2927"]
[WhiteTeam "AUS"]
[BlackTeam "SRB"]
[WhiteClock "0:00:03"]
[BlackClock "0:00:58"]

1. d4 {[%clk 0:03:00]}  Nf6 {[%clk 0:02:56]} 2. Bg5 {[%clk 0:03:00]}  Nc6 {[%clk 0:02:54]} 3. e3 {[%clk 0:02:53]}  e5 {[%clk 0:02:53]} 4. dxe5 {[%clk 0:02:50]}  Nxe5 {[%clk 0:02:52]} 5. Nf3 {[%clk 0:02:50]}  h6 {[%clk 0:02:45]} 6. Bf4 {[%clk 0:02:36]}  Nxf3+ {[%clk 0:02:41]} 7. Qxf3 {[%clk 0:02:37]}  d6 {[%clk 0:02:41]} 8. Nc3 {[%clk 0:02:34]}  c6 {[%clk 0:02:34]} 9. Bd3 {[%clk 0:02:17]}  g5 {[%clk 0:02:32]} 10. O-O {[%clk 0:01:36]}  gxf4 {[%clk 0:02:30]} 11. exf4 {[%clk 0:01:37]}  Bg7 {[%clk 0:02:21]} 12. Rfe1+ {[%clk 0:01:34]}  Kf8 {[%clk 0:02:12]} 13. f5 {[%clk 0:01:26]}  h5 {[%clk 0:02:04]} 14. h3 {[%clk 0:01:26]}  d5 {[%clk 0:02:02]} 15. Re2 {[%clk 0:01:19]}  Qd6 {[%clk 0:02:01]} 16. Rae1 {[%clk 0:01:18]}  Bd7 {[%clk 0:02:01]} 17. a3 {[%clk 0:01:05]}  Re8 {[%clk 0:01:59]} 18. Rxe8+ {[%clk 0:01:04]}  Bxe8 {[%clk 0:01:56]} 19. Ne2 {[%clk 0:01:05]}  Bh6 {[%clk 0:01:54]} 20. Nd4 {[%clk 0:00:55]}  Qf4 {[%clk 0:01:53]} 21. Qxf4 {[%clk 0:00:51]}  Bxf4 {[%clk 0:01:54]} 22. g3 {[%clk 0:00:50]}  Bd6 {[%clk 0:01:54]} 23. b4 {[%clk 0:00:50]}  Bd7 {[%clk 0:01:53]} 24. Kg2 {[%clk 0:00:48]}  Kg7 {[%clk 0:01:53]} 25. f3 {[%clk 0:00:45]}  Re8 {[%clk 0:01:53]} 26. Rxe8 {[%clk 0:00:44]}  Bxe8 {[%clk 0:01:53]} 27. c3 {[%clk 0:00:44]}  Kh6 {[%clk 0:01:51]} 28. h4 {[%clk 0:00:36]}  Be5 {[%clk 0:01:50]} 29. Kf2 {[%clk 0:00:33]}  Nd7 {[%clk 0:01:46]} 30. Ne2 {[%clk 0:00:32]}  Nb6 {[%clk 0:01:45]} 31. g4 {[%clk 0:00:23]}  hxg4 {[%clk 0:01:30]} 32. fxg4 {[%clk 0:00:24]}  Na4 {[%clk 0:01:25]} 33. c4 {[%clk 0:00:23]}  Nb2 {[%clk 0:01:25]} 34. g5+ {[%clk 0:00:16]}  Kh5 {[%clk 0:01:24]} 35. cxd5 {[%clk 0:00:12]}  Nxd3+ {[%clk 0:01:22]} 36. Ke3 {[%clk 0:00:13]}  cxd5 {[%clk 0:01:20]} 37. Ng1 {[%clk 0:00:07]}  Ne1 {[%clk 0:01:16]} 38. Ke2 {[%clk 0:00:07]}  Bc3 {[%clk 0:01:12]} 39. Nh3 {[%clk 0:00:06]}  Kxh4 {[%clk 0:01:08]} 40. Nf4 {[%clk 0:00:06]}  d4 {[%clk 0:01:01]} 41. g6 {[%clk 0:00:06]}  fxg6 {[%clk 0:01:00]} 42. fxg6 {[%clk 0:00:07]}  d3+ {[%clk 0:00:59]} 43. Kd1 {[%clk 0:00:03]}  d2 {[%clk 0:00:58]} 0-1

[Event "January 9 Late 2024"]
[Site "https://www.chess.com"]
[Date "2024.01.09"]
[Round "2"]
[White "Liascovich, Lucas"]
[Black "Filipets, Egor"]
[Result "1-0"]
[Board "53"]
[TimeControl "180+1"]
[WhiteFideId "108634"]
[BlackFideId "13503928"]
[WhiteElo "2914"]
[BlackElo "2596"]
[WhiteTeam "ARG"]
[BlackTeam "BLR"]
[WhiteClock "0:00:57"]
[BlackClock "0:00:10"]

1. e4 {[%clk 0:03:00]}  d6 {[%clk 0:02:57]} 2. d4 {[%clk 0:02:59]}  Nf6 {[%clk 0:02:58]} 3. Nc3 {[%clk 0:02:58]}  g6 {[%clk 0:02:58]} 4. f4 {[%clk 0:02:58]}  Bg7 {[%clk 0:02:57]} 5. Nf3 {[%clk 0:02:59]}  c5 {[%clk 0:02:57]} 6. dxc5 {[%clk 0:02:59]}  Qa5 {[%clk 0:02:58]} 7. Bd3 {[%clk 0:02:57]}  Qxc5 {[%clk 0:02:58]} 8. Qe2 {[%clk 0:02:56]}  Bg4 {[%clk 0:02:56]} 9. Be3 {[%clk 0:02:56]}  Qa5 {[%clk 0:02:56]} 10. O-O {[%clk 0:02:55]}  Nc6 {[%clk 0:02:53]} 11. Kh1 {[%clk 0:02:46]}  h5 {[%clk 0:02:35]} 12. h3 {[%clk 0:02:39]}  Bd7 {[%clk 0:02:31]} 13. Ng5 {[%clk 0:02:37]}  h4 {[%clk 0:02:24]} 14. Nd5 {[%clk 0:02:24]}  Nh5 {[%clk 0:02:08]} 15. Bf2 {[%clk 0:02:22]}  e6 {[%clk 0:01:59]} 16. c3 {[%clk 0:02:22]}  exd5 {[%clk 0:01:30]} 17. exd5+ {[%clk 0:02:23]}  Kf8 {[%clk 0:01:30]} 18. dxc6 {[%clk 0:02:17]}  Bxc6 {[%clk 0:01:31]} 19. Bxh4 {[%clk 0:02:07]}  Re8 {[%clk 0:01:17]} 20. Qf2 {[%clk 0:02:07]}  Qd5 {[%clk 0:01:10]} 21. Rad1 {[%clk 0:02:03]}  Nxf4 {[%clk 0:01:05]} 22. Be4 {[%clk 0:01:31]}  Qxe4 {[%clk 0:00:50]} 23. Nxe4 {[%clk 0:01:30]}  Rxe4 {[%clk 0:00:51]} 24. Rxd6 {[%clk 0:01:24]}  Be5 {[%clk 0:00:36]} 25. Rd8+ {[%clk 0:01:23]}  Kg7 {[%clk 0:00:36]} 26. Rxh8 {[%clk 0:01:23]}  Kxh8 {[%clk 0:00:37]} 27. Re1 {[%clk 0:01:09]}  Nxg2 {[%clk 0:00:11]} 28. Rxe4 {[%clk 0:01:02]}  Bxe4 {[%clk 0:00:12]} 29. Bf6+ {[%clk 0:01:02]}  Bxf6 {[%clk 0:00:11]} 30. Qxf6+ {[%clk 0:01:03]}  Kg8 {[%clk 0:00:12]} 31. Qd8+ {[%clk 0:01:01]}  Kh7 {[%clk 0:00:12]} 32. Kh2 {[%clk 0:00:57]}  Nh4 {[%clk 0:00:10]} 33. Qxh4+ {[%clk 0:00:57]} 1-0

[Event "January 9 Late 2024"]
[Site "https://www.chess.com"]
[Date "2024.01.09"]
[Round "2"]
[White "Pinheiro, Iung Alicio de O."]
[Black "Livaic, Leon"]
[Result "1-0"]
[Board "54"]
[TimeControl "180+1"]
[WhiteFideId "2104350"]
[BlackFideId "14531534"]
[WhiteElo "2595"]
[BlackElo "2902"]
[WhiteTeam "BRA"]
[BlackTeam "CRO"]
[WhiteClock "0:00:08"]
[BlackClock "0:00:00"]

1. d4 {[%clk 0:03:00]}  f5 {[%clk 0:02:56]} 2. e4 {[%clk 0:02:52]}  fxe4 {[%clk 0:02:56]} 3. Nc3 {[%clk 0:02:52]}  Nf6 {[%clk 0:02:56]} 4. f3 {[%clk 0:02:49]}  e3 {[%clk 0:02:43]} 5. Bxe3 {[%clk 0:02:46]}  e6 {[%clk 0:02:41]} 6. a3 {[%clk 0:02:41]}  b6 {[%clk 0:02:34]} 7. Bc4 {[%clk 0:02:10]}  Bb7 {[%clk 0:02:33]} 8. Nge2 {[%clk 0:02:07]}  Bd6 {[%clk 0:02:24]} 9. Qd2 {[%clk 0:02:02]}  Nc6 {[%clk 0:02:22]} 10. O-O-O {[%clk 0:01:52]}  a6 {[%clk 0:02:08]} 11. Ba2 {[%clk 0:01:46]}  Ne7 {[%clk 0:01:58]} 12. Bg5 {[%clk 0:01:45]}  O-O {[%clk 0:01:57]} 13. Kb1 {[%clk 0:01:35]}  Kh8 {[%clk 0:01:55]} 14. h4 {[%clk 0:01:23]}  b5 {[%clk 0:01:55]} 15. h5 {[%clk 0:01:20]}  h6 {[%clk 0:01:52]} 16. Bh4 {[%clk 0:01:05]}  Rb8 {[%clk 0:01:36]} 17. d5 {[%clk 0:00:38]}  exd5 {[%clk 0:01:05]} 18. Bxf6 {[%clk 0:00:23]}  Rxf6 {[%clk 0:01:05]} 19. Nxd5 {[%clk 0:00:23]}  Bxd5 {[%clk 0:01:04]} 20. Bxd5 {[%clk 0:00:24]}  b4 {[%clk 0:01:01]} 21. a4 {[%clk 0:00:24]}  Nxd5 {[%clk 0:00:37]} 22. Qxd5 {[%clk 0:00:25]}  b3 {[%clk 0:00:34]} 23. cxb3 {[%clk 0:00:25]}  Re6 {[%clk 0:00:25]} 24. Nc1 {[%clk 0:00:25]}  Qf6 {[%clk 0:00:23]} 25. Rhe1 {[%clk 0:00:23]}  Rbe8 {[%clk 0:00:21]} 26. Rxe6 {[%clk 0:00:23]}  Rxe6 {[%clk 0:00:20]} 27. Qd3 {[%clk 0:00:23]}  Re5 {[%clk 0:00:16]} 28. Qxa6 {[%clk 0:00:20]}  Rxh5 {[%clk 0:00:16]} 29. Qa8+ {[%clk 0:00:19]}  Kh7 {[%clk 0:00:16]} 30. Qe4+ {[%clk 0:00:19]}  g6 {[%clk 0:00:15]} 31. Nd3 {[%clk 0:00:17]}  Rg5 {[%clk 0:00:15]} 32. g4 {[%clk 0:00:17]}  h5 {[%clk 0:00:13]} 33. gxh5 {[%clk 0:00:17]}  Rxh5 {[%clk 0:00:14]} 34. f4 {[%clk 0:00:17]}  Rh2 {[%clk 0:00:14]} 35. Rg1 {[%clk 0:00:16]}  Bc5 {[%clk 0:00:08]} 36. Rh1 {[%clk 0:00:16]}  Qh4 {[%clk 0:00:03]} 37. Rxh2 {[%clk 0:00:15]}  Qxh2 {[%clk 0:00:04]} 38. Qd5 {[%clk 0:00:13]}  Bd6 {[%clk 0:00:03]} 39. a5 {[%clk 0:00:13]}  Qg1+ {[%clk 0:00:03]} 40. Ka2 {[%clk 0:00:12]}  Qe3 {[%clk 0:00:03]} 41. Ne5 {[%clk 0:00:08]}  Qa7 {[%clk 0:00:00]} 42. Qf7+ {[%clk 0:00:08]} 1-0